bitfinex-derivatives/quotes_SOLF0:USTF0_20241010
["timestamp","ask_amount","ask_price","bid_price","bid_amount"]
[1728564783970,3.6096,138.67,138.65,0.12502]
[1728564784168,1.3515,138.7,138.65,0.12502]
[1728564785072,3.6091,138.69,138.66,3.6096]
[1728564785270,1.3515,138.7,138.65,0.12502]
[1728564785675,3.6092,138.68,138.65,3.73482]
[1728564785972,1.3515,138.7,138.65,0.12502]
[1728564786172,3.6093,138.68,138.65,3.73492]
[1728564786366,1.4027,138.69,138.65,3.73492]
[1728564786567,3.6093,138.68,138.65,3.73492]
[1728564787386,3.6093,138.68,138.65,0.12502]
[1728564787575,1.4027,138.69,138.65,0.12502]
[1728564787776,3.6096,138.67,138.65,0.12502]
[1728564788384,3.6093,138.68,138.65,0.12502]
[1728564788676,3.6093,138.68,138.65,3.73492]
[1728564789164,3.6093,138.68,138.65,0.12502]
[1728564789966,3.6093,138.68,138.65,3.73492]
[1728564790978,1.4027,138.69,138.65,0.12502]
[1728564791380,1.3185,138.72,138.65,0.12502]
[1728564792272,1.3787,138.76,138.68,27.69]
[1728564792682,1.4395,138.78,138.71,27.69]
[1728564793771,3.6074,138.75,138.72,3.608]
[1728564793973,3.6074,138.75,138.69,27.69]
[1728564794180,1.4395,138.78,138.69,27.69]
[1728564794579,3.6072,138.76,138.69,27.69]
[1728564794978,3.6072,138.76,138.66,1.3946]
[1728564794979,3.73192,138.77,138.71,31.2983]
[1728564795194,0.12502,138.77,138.71,27.69]
[1728564795374,0.12502,138.77,138.73,27.69]
[1728564795572,0.12502,138.77,138.75,3.6072]
[1728564795890,0.12502,138.77,138.73,27.69]
[1728564796080,0.12502,138.77,138.72,1.3868]
[1728564796081,0.12502,138.77,138.74,3.6075]
[1728564796588,3.73202,138.77,138.73,3.6077]
[1728564796976,0.12502,138.77,138.72,4.96550702]
[1728564797184,0.12502,138.77,138.76,3.6071]
[1728564800986,0.12502,138.77,138.76,31.2971]
[1728564801181,0.12502,138.83,138.8,3.6058]
[1728564801383,0.12502,138.83,138.73,27.69]
[1728564801384,0.12502,138.83,138.78,27.69]
[1728564801704,0.12502,138.83,138.82,3.6055]
[1728564802685,0.12502,138.89,138.85,3.6045]
[1728564802886,0.12502,138.89,138.8,27.69]
[1728564803588,27.69,138.88,138.76,27.69]
[1728564804094,3.6057,138.82,138.76,27.69]
[1728564804288,27.69,138.88,138.76,27.69]
[1728564804684,3.6054,138.83,138.76,27.69]
[1728564804987,3.6054,138.83,138.79,3.6061]
[1728564805188,3.6047,138.86,138.79,3.6061]
[1728564805393,2.7602,138.85,138.79,3.6061]
[1728564805583,1.3435,138.84,138.79,3.6061]
[1728564805988,3.6054,138.83,138.79,3.6061]
[1728564806188,1.3435,138.84,138.76,27.69]
[1728564806591,3.6054,138.83,138.76,27.69]
[1728564807897,1.3435,138.84,138.78,27.69]
[1728564808385,2.7112,138.88,138.8,27.69]
[1728564808588,2.7112,138.88,138.82,27.69]
[1728564808988,2.7112,138.88,138.83,3.6051]
[1728564809496,3.6045,138.86,138.83,3.6051]
[1728564809699,2.7112,138.88,138.82,3.6055]
[1728564810088,3.6046,138.86,138.82,3.6055]
[1728564810287,3.6046,138.86,138.81,3.6056]
[1728564810497,2.7112,138.88,138.8,27.69]
[1728564810697,3.6046,138.86,138.8,27.69]
[1728564810905,3.6046,138.86,138.83,3.6052]
[1728564811196,2.7112,138.88,138.8,27.69]
[1728564811403,3.6043,138.87,138.83,3.605]
[1728564811899,3.6044,138.87,138.84,3.6049]
[1728564812101,3.6044,138.87,138.8,27.69]
[1728564812300,2.7112,138.88,138.8,27.69]
[1728564812601,2.7112,138.88,138.81,3.6056]
[1728564812602,3.6049,138.85,138.81,3.6056]
[1728564813300,2.7112,138.88,138.81,3.6056]
[1728564813501,2.7112,138.88,138.78,27.69]
[1728564813708,2.7112,138.88,138.8,3.606]
[1728564814000,30.4012,138.88,138.78,27.69]
[1728564814301,30.4012,138.88,138.81,3.6056]
[1728564814808,30.4012,138.88,138.8,3.6059]
[1728564815005,3.6054,138.83,138.8,3.6059]
[1728564815306,30.4012,138.88,138.79,3.6062]
[1728564815493,3.6057,138.82,138.79,3.6062]
[1728564815803,30.4012,138.88,138.76,27.69]
[1728564816102,3.60440754,138.87,138.76,27.69]
[1728564816295,37.6095,138.88,138.76,27.69]
[1728564816901,27.69,138.86,138.76,27.69]
[1728564817100,3.606,138.81,138.78,3.6064]
[1728564820102,30.4012,138.88,138.76,27.69]
[1728564820405,2.7112,138.88,138.78,27.69]
[1728564820605,3.6049,138.85,138.82,3.6053]
[1728564820805,2.7112,138.88,138.78,27.69]
[1728564821203,3.6051,138.84,138.81,3.6057]
[1728564822012,30.4012,138.88,138.78,27.69]
[1728564822403,3.6055,138.83,138.8,3.6059]
[1728564822598,3.6055,138.83,138.78,27.69]
[1728564822800,30.4012,138.88,138.78,27.69]
[1728564823411,3.6055,138.82,138.8,3.6059]
[1728564823804,30.4012,138.88,138.8,3.6059]
[1728564824611,30.4012,138.88,138.79,3.6062]
[1728564824800,3.6059,138.81,138.79,3.6062]
[1728564826807,27.69,138.86,138.76,27.69]
[1728564827204,3.6061,138.8,138.77,3.73162]
[1728564827402,27.69,138.86,138.77,3.73162]
[1728564827609,27.69,138.86,138.77,0.12502]
[1728564827909,3.606,138.81,138.78,3.6064]
[1728564828510,27.69,138.86,138.79,3.6062]
[1728564829412,30.4012,138.88,138.78,27.69]
[1728564829610,3.605,138.85,138.78,27.69]
[1728564829811,30.4012,138.88,138.81,3.6055]
[1728564830117,30.4012,138.88,138.78,27.69]
[1728564831208,3.6057,138.82,138.8,3.6059]
[1728564831417,30.4012,138.88,138.78,27.69]
[1728564831810,3.6054,138.83,138.8,3.6058]
[1728564833629,3.6054,138.83,138.81,3.6057]
[1728564833918,3.6051,138.84,138.78,27.69]
[1728564834107,30.4012,138.88,138.82,3.6055]
[1728564834412,3.6049,138.85,138.78,27.69]
[1728564834716,3.6049,138.85,138.82,3.6054]
[1728564835108,2.7112,138.88,138.8,27.69]
[1728564835420,2.7112,138.88,138.84,3.6048]
[1728564835604,2.7112,138.88,138.82,27.69]
[1728564835806,3.6048,138.85,138.8,27.69]
[1728564836716,3.6048,138.85,138.82,3.6054]
[1728564838120,3.6048,138.85,138.8,27.69]
[1728564838613,3.6048,138.85,138.82,3.6054]
[1728564839319,2.7112,138.88,138.82,3.6054]
[1728564839512,2.7112,138.88,138.81,3.6057]
[1728564840317,3.6051,138.84,138.81,3.6057]
[1728564840625,3.6051,138.84,138.82,3.6055]
[1728564840922,3.6051,138.84,138.8,17.3]
[1728564841215,3.6051,138.84,138.81,3.6056]
[1728564841415,3.6057,138.82,138.78,17.3]
[1728564841813,20.92984155,138.87,138.78,20.9063]
[1728564842012,3.6059,138.81,138.78,20.9063]
[1728564842207,17.3,138.85,138.78,3.6063]
[1728564842406,1.3427,138.84,138.79,3.6061]
[1728564842617,3.6057,138.82,138.79,3.6061]
[1728564843115,1.3427,138.84,138.8,17.3]
[1728564843320,4.9478,138.84,138.8,17.3]
[1728564843807,4.9478,138.84,138.81,3.6057]
[1728564844618,1.3427,138.84,138.8,17.3]
[1728564845425,3.6053,138.83,138.81,3.6057]
[1728564846813,1.3427,138.84,138.79,17.3]
[1728564847917,3.6055,138.83,138.81,3.6057]
[1728564848113,9.9192,138.88,138.81,3.6057]
[1728564848114,2.7112,138.88,138.81,17.3]
[1728564848319,2.7112,138.88,138.85,17.3]
[1728564848320,4.1544,138.88,138.85,17.3]
[1728564848737,5.0473,138.88,138.85,17.3]
[1728564849015,1.4432,138.88,138.85,17.3]
[1728564849222,0.12502,138.89,138.86,17.3]
[1728564849620,0.12502,138.89,138.88,3.604]
[1728564849818,0.12502,138.89,138.86,17.3]
[1728564850122,0.12502,138.89,138.87,3.6041]
[1728564853336,0.12502,138.89,138.81,2.772]
[1728564853337,0.12502,138.89,138.88,20.904]
[1728564855515,0.12502,138.89,138.88,17.3]
[1728564855821,0.12502,138.89,138.87,3.6041]
[1728564856622,0.12502,138.89,138.86,17.3]
[1728564856623,0.12502,138.89,138.88,3.604]
[1728564857018,0.12502,138.89,138.88,17.3]
[1728564858529,0.12502,138.89,138.88,20.904]
[1728564860425,0.12502,138.89,138.88,17.3]
[1728564860629,0.12502,138.89,138.81,9.9833]
[1728564860630,0.12502,138.89,138.86,20.9045]
[1728564860828,3.604,138.88,138.86,20.9045]
[1728564861051,0.12502,138.89,138.84,17.3]
[1728564861455,3.6044,138.87,138.84,20.9049]
[1728564861957,0.12502,138.89,138.84,17.3]
[1728564862254,0.12502,138.89,138.82,17.3]
[1728564862660,3.6047,138.86,138.82,17.3]
[1728564862955,0.12502,138.89,138.82,17.3]
[1728564863157,3.6043,138.87,138.84,3.6049]
[1728564863360,3.6043,138.87,138.82,17.3]
[1728564863651,0.12502,138.89,138.81,2.772]
[1728564863652,0.12502,138.89,138.84,17.3]
[1728564863954,0.12502,138.89,138.87,3.6042]
[1728564864452,3.72882,138.89,138.87,3.6042]
[1728564864650,3.72882,138.89,138.86,3.6044]
[1728564867647,3.72882,138.89,138.87,3.6042]
[1728564867849,0.12502,138.89,138.88,17.3]
[1728564868356,4.9827,138.94,138.88,17.3]
[1728564868548,4.9827,138.94,138.91,17.3]
[1728564869352,4.9827,138.94,138.91,20.903]
[1728564870464,0.12502,138.95,138.93,17.3]
[1728564871259,0.12502,138.95,138.93,20.9025]
[1728564871662,0.12502,138.95,138.93,17.3]
[1728564871954,0.12502,138.95,138.94,3.6024]
[1728564872454,0.12502,138.95,138.93,20.9025]
[1728564872952,0.12502,138.95,138.94,3.6024]
[1728564873153,2.668,139.0,138.94,17.3]
[1728564873351,2.668,139.0,138.89,0.12502]
[1728564873352,1.3432,139.0,138.96,17.3]
[1728564874052,1.3432,139.0,138.96,20.9018]
[1728564874661,3.6013,138.99,138.96,20.9018]
[1728564876052,1.3432,139.0,138.89,0.12502]
[1728564876053,3.602,138.96,138.93,20.9025]
[1728564876248,20.0377,139.0,138.91,17.3]
[1728564876763,3.6023,138.95,138.92,3.6028]
[1728564876964,20.0377,139.0,138.91,17.3]
[1728564877158,3.6026,138.94,138.91,20.903]
[1728564877459,20.0377,139.0,138.91,17.3]
[1728564877858,3.602,138.96,138.93,3.6026]
[1728564878060,20.0377,139.0,138.91,17.3]
[1728564878255,3.6026,138.94,138.91,20.9031]
[1728564878862,3.6026,138.94,138.92,3.6029]
[1728564879254,3.6026,138.94,138.91,17.3]
[1728564879255,3.6023,138.95,138.91,17.3]
[1728564879569,20.0377,139.0,138.89,0.12502]
[1728564879570,2.7377,139.0,138.93,17.3]
[1728564879756,3.6013,138.99,138.96,17.3]
[1728564879953,2.7377,139.0,138.96,17.3]
[1728564880260,3.6014,138.98,138.96,17.3]
[1728564880459,3.6014,138.98,138.96,20.9019]
[1728564881650,2.7377,139.0,138.96,20.9019]
[1728564881851,1.3432,139.0,138.94,17.3]
[1728564882363,3.6018,138.97,138.94,20.9022]
[1728564883066,3.6015,138.98,138.95,3.6019]
[1728564883269,1.3432,139.0,138.94,17.3]
[1728564884361,3.6014,138.98,138.94,17.3]
[1728564884566,1.3432,139.0,138.89,0.12502]
[1728564884755,1.3432,139.0,138.93,17.3]
[1728564884961,3.6014,138.98,138.95,3.6021]
[1728564885164,3.6014,138.98,138.95,17.3]
[1728564885667,3.6014,138.98,138.95,20.902]
[1728564885861,3.6019,138.96,138.95,17.3]
[1728564886772,1.3432,139.0,138.94,3.6022]
[1728564886969,1.3432,139.0,138.95,17.3]
[1728564887470,3.6019,138.96,138.95,17.3]
[1728564887665,1.3432,139.0,138.93,20.9026]
[1728564887860,3.6014,138.98,138.93,20.9026]
[1728564888063,1.3432,139.0,138.93,20.9026]
[1728564888268,1.3432,139.0,138.94,3.6023]
[1728564888772,3.6018,138.97,138.94,3.6023]
[1728564889171,3.6018,138.97,138.95,20.9021]
[1728564890265,1.3432,139.0,138.95,17.3]
[1728564890466,1.3432,139.0,138.97,20.9015]
[1728564891067,4.9442,139.0,138.97,20.9015]
[1728564891263,1.3432,139.0,138.97,17.3]
[1728564891470,0.12502,139.01,138.98,3.6011]
[1728564891673,3.601,139.0,138.98,3.6011]
[1728564892467,0.12502,139.01,138.97,17.3]
[1728564892667,0.12502,139.01,139.0,17.3]
[1728564892870,1.3422,139.05,139.0,17.3]
[1728564893078,1.3422,139.05,139.02,17.3]
[1728564893278,3.5998,139.04,139.02,17.3]
[1728564893874,3.6,139.04,139.02,20.9003]
[1728564894181,1.4247,139.1,139.03,17.3]
[1728564894688,1.4247,139.1,139.04,3.5997]
[1728564894689,3.72422,139.07,139.04,3.5997]
[1728564894878,0.12502,139.07,139.03,17.3]
[1728564895185,3.72422,139.07,139.04,3.5997]
[1728564895373,0.12502,139.07,139.04,3.5997]
[1728564896474,3.5993,139.06,139.04,3.5997]
[1728564896669,3.5993,139.06,139.03,17.3]
[1728564896875,3.5994,139.06,139.02,17.3]
[1728564897076,0.12502,139.07,139.02,17.3]
[1728564897383,0.12502,139.07,139.02,20.9003]
[1728564898177,3.5997,139.05,139.02,20.9003]
[1728564898680,3.5998,139.05,139.02,20.9003]
[1728564898880,0.12502,139.07,139.02,17.3]
[1728564899475,0.12502,139.07,139.02,20.9003]
[1728564899476,3.5998,139.04,139.02,20.9003]
[1728564900174,0.12502,139.07,139.02,20.9003]
[1728564900375,3.5998,139.05,139.02,20.9003]
[1728564900581,3.5998,139.05,139.03,3.6]
[1728564901175,0.12502,139.07,139.04,17.3]
[1728564901684,21.65100229,139.2,138.98,3.62884098]
[1728564901685,1.4239,139.14,139.06,17.3]
[1728564901884,1.3381,139.17,139.11,3.5978]
[1728564902382,3.72252,139.13,139.1,17.3]
[1728564902586,3.72252,139.13,139.1,20.8981]
[1728564902786,3.72252,139.13,139.1,17.3]
[1728564902787,0.12502,139.13,139.1,17.3]
[1728564902985,0.12502,139.13,139.12,3.5977]
[1728564903679,1.3381,139.17,139.12,17.3]
[1728564903992,0.12502,139.19,139.16,17.3]
[1728564904195,0.12502,139.19,139.18,17.3]
[1728564904385,0.12502,139.19,139.18,20.8962]
[1728564904586,0.12502,139.19,139.18,17.3]
[1728564906084,3.5967,139.17,139.14,17.3]
[1728564906387,0.12502,139.19,139.1,1.4568]
[1728564906388,0.12502,139.19,139.16,27.6]
[1728564906595,1.3846,139.23,139.18,27.6]
[1728564906783,3.5952,139.22,139.19,3.5959]
[1728564907391,3.5952,139.22,139.18,31.196]
[1728564908891,0.12502,139.25,139.18,27.6]
[1728564909087,0.12502,139.25,139.21,27.6]
[1728564909596,0.12502,139.25,139.21,31.1953]
[1728564909597,3.71952,139.25,139.21,31.1953]
[1728564909785,0.12502,139.25,139.21,27.6]
[1728564910182,0.12502,139.25,139.22,3.595]
[1728564910983,0.12502,139.25,139.21,27.6]
[1728564911788,0.12502,139.25,139.2,3.5956]
[1728564912994,0.12502,139.25,139.22,3.5951]
[1728564913187,0.12502,139.25,139.21,27.6]
[1728564913387,3.5946,139.24,139.21,27.6]
[1728564913896,3.5946,139.24,139.21,31.1953]
[1728564914294,0.12502,139.25,139.21,27.6]
[1728564915090,0.12502,139.25,139.23,3.5947]
[1728564915287,0.12502,139.25,139.21,27.6]
[1728564916494,0.12502,139.25,139.23,3.5947]
[1728564916701,0.12502,139.25,139.23,27.6]
[1728564916993,0.12518,139.27,139.23,27.6]
[1728564917390,0.12518,139.27,139.21,27.6]
[1728564917590,3.5942,139.26,139.22,3.5949]
[1728564918299,3.5942,139.26,139.23,3.5949]
[1728564918487,0.12518,139.27,139.21,27.6]
[1728564918687,0.12518,139.27,139.24,27.6]
[1728564918891,0.12518,139.27,139.25,3.5944]
[1728564919192,0.12518,139.27,139.24,27.6]
[1728564919599,0.12518,139.27,139.25,3.5942]
[1728564920094,0.12518,139.27,139.26,3.5941]
[1728564920503,0.12518,139.27,139.26,31.1941]
[1728564920900,2.6876,139.33,139.26,27.6]
[1728564921194,75.55658425,139.36,139.29,27.6]
[1728564921387,3.5922,139.34,139.29,27.6]
[1728564921787,3.5922,139.34,139.31,3.5928]
[1728564922495,0.12502,139.37,139.31,3.5928]
[1728564922496,0.12502,139.37,139.32,3.5926]
[1728564922706,3.5919,139.35,139.32,3.5926]
[1728564923291,3.5917,139.36,139.33,3.5923]
[1728564923702,0.12502,139.37,139.33,27.6]
[1728564923900,3.5917,139.36,139.33,31.1921]
[1728564924100,3.5917,139.36,139.33,27.6]
[1728564924604,3.5917,139.36,139.33,31.1922]
[1728564926197,0.12502,139.37,139.33,31.1922]
[1728564926407,0.12502,139.37,139.36,17.24]
[1728564926709,18.5738,139.46,139.36,17.24]
[1728564926897,3.5907,139.4,139.37,3.5911]
[1728564927199,1.3338,139.46,139.38,17.24]
[1728564927408,1.3338,139.46,139.33,20.74535876]
[1728564927409,3.5902,139.42,139.4,17.24]
[1728564927598,1.3338,139.46,139.4,17.24]
[1728564928603,3.59,139.42,139.4,31.1505]
[1728564928993,1.3338,139.46,139.4,27.56]
[1728564929206,3.5903,139.41,139.4,27.56]
[1728564929396,1.3338,139.46,139.38,27.56]
[1728564929597,1.3338,139.46,139.36,27.56]
[1728564929806,1.3338,139.46,139.36,31.1514]
[1728564929807,3.5909,139.39,139.36,31.1514]
[1728564930004,3.5909,139.39,139.36,27.56]
[1728564930399,3.5909,139.39,139.36,31.1515]
[1728564930799,3.67385241,139.45,139.36,27.56]
[1728564931105,3.5912,139.38,139.36,27.56]
[1728564932305,3.5917,139.36,139.33,31.1523]
[1728564932904,3.5918,139.35,139.33,27.56]
[1728564933210,38.41245241,139.45,139.29,27.56]
[1728564933211,27.56,139.4,139.29,27.56]
[1728564933406,4.2576,139.39,139.29,27.56]
[1728564933611,27.56,139.38,139.27,1.3191]
[1728564934011,3.5926,139.32,139.28,3.5935]
[1728564934210,3.5926,139.32,139.26,27.56]
[1728564934414,3.5926,139.32,139.24,27.56]
[1728564934617,3.5926,139.32,139.26,3.594]
[1728564934909,3.5937,139.28,139.26,3.594]
[1728564935114,1.3904,139.31,139.24,27.56]
[1728564935506,3.5936,139.29,139.24,27.56]
[1728564935706,1.3904,139.31,139.25,3.71932]
[1728564935921,1.3904,139.31,139.25,0.12502]
[1728564936310,1.3904,139.31,139.25,3.71942]
[1728564936509,1.3904,139.31,139.25,0.12502]
[1728564938312,3.5941,139.26,139.25,0.12502]
[1728564939209,3.5941,139.26,139.19,27.68502]
[1728564939210,3.5957,139.2,139.19,0.12502]
[1728564939913,27.56,139.24,139.14,27.56]
[1728564940107,3.5972,139.14,139.12,27.56]
[1728564940307,3.5972,139.14,139.09,27.56]
[1728564945312,3.5972,139.14,139.08,1.3266]
[1728564945710,3.5972,139.14,139.09,27.56]
[1728564946308,3.5972,139.14,139.08,4.9252]
[1728564946309,3.5972,139.14,139.07,0.12502]
[1728564947411,3.5972,139.14,139.1,27.56]
[1728564949914,3.5972,139.14,139.1,31.1583]
[1728564950930,1.3374,139.19,139.13,27.68502]
[1728564951424,3.5969,139.16,139.13,27.68502]
[1728564952123,1.3374,139.19,139.13,27.68502]
[1728564952919,3.5962,139.18,139.15,27.56]
[1728564953124,1.3374,139.19,139.15,27.56]
[1728564953931,1.3318,139.22,139.15,27.56]
[1728564954120,0.12502,139.25,139.13,0.12502]
[1728564954121,1.327,139.23,139.17,27.56]
[1728564954514,1.327,139.23,139.15,27.56]
[1728564955017,1.327,139.23,139.13,27.68502]
[1728564955419,3.5972,139.15,139.13,27.68502]
[1728564955629,1.327,139.23,139.13,27.68502]
[1728564956024,3.5965,139.17,139.13,31.28242]
[1728564956224,1.327,139.23,139.15,27.56]
[1728564957131,3.596,139.19,139.15,31.1568]
[1728564957328,1.327,139.23,139.15,27.56]
[1728564957635,3.5964,139.18,139.15,27.56]
[1728564957928,1.327,139.23,139.13,27.68502]
[1728564958323,3.5968,139.16,139.13,27.68502]
[1728564959125,3.597,139.15,139.13,27.68502]
[1728564960426,28.887,139.23,139.13,0.12502]
[1728564960625,7.1904,139.22,139.13,0.12502]
[1728564962126,3.5971,139.15,139.13,0.12502]
[1728564962431,7.1904,139.22,139.13,0.12502]
[1728564962930,7.1904,139.22,139.13,27.68502]
[1728564963123,1.327,139.23,139.13,27.68502]
[1728564963329,1.327,139.23,139.16,27.56]
[1728564963725,3.596,139.19,139.16,31.1566]
[1728564963924,1.327,139.23,139.13,0.12502]
[1728564964533,1.327,139.23,139.13,3.72242]
[1728564964719,1.327,139.23,139.13,0.12502]
[1728564965632,3.5961,139.19,139.15,3.5968]
[1728564965830,1.327,139.23,139.13,0.12502]
[1728564966027,1.327,139.23,139.17,27.56]
[1728564967329,3.5956,139.21,139.18,3.5962]
[1728564967525,1.327,139.23,139.15,27.56]
[1728564967826,1.327,139.23,139.21,3.5953]
[1728564968024,1.327,139.23,139.19,27.56]
[1728564968627,3.5953,139.22,139.19,31.1558]
[1728564968828,1.327,139.23,139.19,27.56]
[1728564969031,3.5967,139.17,139.15,27.56]
[1728564969432,1.327,139.23,139.15,27.56]
[1728564969823,1.327,139.23,139.13,27.68502]
[1728564970327,1.327,139.23,139.13,31.28232]
[1728564970529,27.56,139.22,139.13,27.68502]
[1728564970723,3.5959,139.2,139.13,31.28232]
[1728564970930,27.56,139.22,139.13,27.68502]
[1728564971532,1.327,139.23,139.13,27.68502]
[1728564971837,1.327,139.23,139.15,27.56]
[1728564972130,3.5967,139.17,139.15,27.56]
[1728564972529,1.327,139.23,139.13,31.28232]
[1728564972530,3.5957,139.2,139.13,31.28232]
[1728564972726,1.327,139.23,139.13,27.68502]
[1728564973632,3.5969,139.16,139.13,31.28242]
[1728564974035,7.1904,139.22,139.13,0.12502]
[1728564974538,10.73313586,139.22,139.13,0.12502]
[1728564975036,3.5972,139.15,139.13,0.12502]
[1728564975228,7.1904,139.22,139.13,0.12502]
[1728564975628,1.327,139.23,139.13,27.68502]
[1728564976033,1.327,139.23,139.14,3.5971]
[1728564976433,1.327,139.23,139.13,27.68502]
[1728564976942,3.5968,139.16,139.13,31.28232]
[1728564978438,3.5963,139.18,139.15,3.5968]
[1728564978646,1.327,139.23,139.13,27.68502]
[1728564978945,3.5966,139.17,139.14,3.5972]
[1728564979134,3.5966,139.17,139.13,27.68502]
[1728564979329,1.327,139.23,139.13,27.68502]
[1728564979546,1.327,139.23,139.15,27.56]
[1728564980043,3.5961,139.19,139.16,3.5966]
[1728564980242,3.5961,139.19,139.15,27.56]
[1728564980442,1.48162,139.25,139.17,27.56]
[1728564980443,0.12502,139.25,139.17,27.56]
[1728564980635,0.12502,139.25,139.22,27.56]
[1728564980942,3.71942,139.25,139.22,27.56]
[1728564981236,0.12502,139.25,139.22,27.56]
[1728564981437,3.5947,139.24,139.22,27.56]
[1728564981842,3.5947,139.24,139.21,3.5952]
[1728564982140,3.5953,139.22,139.19,3.5958]
[1728564982342,0.12502,139.25,139.18,27.56]
[1728564982844,3.5956,139.21,139.18,31.1561]
[1728564983341,0.12502,139.25,139.19,3.5959]
[1728564983539,0.12502,139.25,139.21,27.56]
[1728564984034,3.5947,139.24,139.21,31.1553]
[1728564984236,3.5947,139.24,139.21,3.5953]
[1728564984543,0.12502,139.25,139.19,27.56]
[1728564984737,0.12502,139.25,139.21,27.56]
[1728564986141,3.5948,139.24,139.21,31.1553]
[1728564987732,0.12502,139.25,139.14,1.7294]
[1728564987733,3.5951,139.23,139.2,3.5956]
[1728564987938,0.12502,139.25,139.19,27.56]
[1728564988142,0.12502,139.25,139.17,27.56]
[1728564988439,27.68502,139.25,139.15,27.56]
[1728564988639,0.12502,139.25,139.15,27.56]
[1728564988941,0.12502,139.25,139.17,27.56]
[1728564989346,3.5954,139.21,139.17,27.56]
[1728564989533,0.12502,139.25,139.17,27.56]
[1728564990243,3.5958,139.2,139.17,27.56]
[1728564991244,3.5958,139.2,139.17,31.1563]
[1728564991643,1.3494,139.24,139.19,3.5959]
[1728564992148,3.5954,139.22,139.19,3.5959]
[1728564992637,3.5949,139.23,139.17,27.56]
[1728564993041,0.12502,139.25,139.17,27.56]
[1728564993236,3.5953,139.22,139.19,3.5958]
[1728564993448,0.12502,139.25,139.17,27.56]
[1728564993748,3.595,139.23,139.17,27.56]
[1728564994352,0.12502,139.25,139.21,3.5953]
[1728564994757,0.12502,139.25,139.2,3.5956]
[1728564995454,3.5956,139.21,139.18,3.5961]
[1728564996251,3.5953,139.22,139.19,3.5957]
[1728564996445,0.12502,139.25,139.17,27.56]
[1728564997449,3.5952,139.22,139.19,3.5958]
[1728564998544,3.5952,139.22,139.19,20.8558]
[1728564998940,3.5952,139.22,139.2,3.5956]
[1728565001153,3.5952,139.22,139.19,20.8558]
[1728565001356,0.12502,139.25,139.17,17.26]
[1728565001557,3.5959,139.2,139.17,17.26]
[1728565001852,0.12502,139.25,139.19,17.26]
[1728565002157,3.5953,139.22,139.19,20.8558]
[1728565002855,0.12502,139.25,139.19,20.8558]
[1728565003247,3.5955,139.21,139.19,20.8558]
[1728565003449,0.12502,139.25,139.18,3.5961]
[1728565003645,0.12502,139.25,139.17,17.26]
[1728565003854,3.5959,139.2,139.17,17.26]
[1728565004251,0.12502,139.25,139.17,20.8562]
[1728565004553,3.5961,139.19,139.17,20.8562]
[1728565005148,3.5955,139.21,139.19,3.5959]
[1728565005354,0.12502,139.25,139.19,17.26]
[1728565005542,0.12502,139.25,139.21,17.26]